[Event "AUT-ch Open 2020"]
[Site "Graz"]
[Date "2020.02.16"]
[Round "3.33"]
[White "Schnider, Gert"]
[Black "Modler, Andreas"]
[Result "1-0"]
[ECO "B41"]
[WhiteElo "2429"]
[BlackElo "2225"]
[Annotator "ChessBase"]
[PlyCount "61"]
[EventDate "2020.02.14"]
[EventType "swiss"]
[EventCountry "AUT"]
[SourceTitle "playchess.com"]
[Source "ChessBase"]
[SourceQuality "1"]
[TimeControl "40/5400+30:1800+30"]

1. e4 {[%emt 0:00:00]} c5 {[%emt 0:00:00]} 2. Nf3 {[%emt 0:00:00]} e6 {[%emt 0:00:00]} 3. d4 {[%emt 0:00:00]} cxd4 {[%emt 0:00:00]} 4. Nxd4 {[%emt 0:00:00]} a6 {[%emt 0:00:02]} 5. c4 {[%emt 0:00:00]} Nf6 {[%emt 0:00:07]} 6. Nc3 {[%emt 0:00:00]} Qc7 {[%emt 0:00:07]} 7. Be2 {[%emt 0:01:27]} Bb4 {[%emt 0:05:36]} 8. O-O {[%emt 0:01:10]} Bxc3 {[%emt 0:05:21]} 9. bxc3 {[%emt 0:00:18]} d6 {[%emt 0:00:21]} 10. Ba3 {[%emt 0:17:50]} Nxe4 {[%emt 0:09:34]} 11. Bf3 {[%emt 0:00:15]} Nc5 {[%emt 0:00:50]} 12. Nb3 {[%emt 0:02:50]} O-O {[%emt 0:07:03]} 13. Qd2 {[%emt 0:10:17]} Rd8 {[%emt 0:08:54]} 14. Rfd1 {[%emt 0:04:14]} Nc6 {[%emt 0:01:26]} 15. Nxc5 {[%emt 0:07:42]} dxc5 {[%emt 0:00:40]} 16. Qe3 {[%emt 0:00:08]} Bd7 {[%emt 0:08:05]} 17. Qxc5 {[%emt 0:04:12]} h6 {[%emt 0:08:48]} 18. Rab1 {[%emt 0:03:05]} Rac8 {[%emt 0:05:40]} 19. Qd6 {[%emt 0:11:35]} Ne5 {[%emt 0:10:56]} 20. Be2 {[%emt 0:15:07]} Qxd6 {[%emt 0:10:26]} 21. Bxd6 {[%emt 0:00:37]} Ng6 {[%emt 0:00:32]} 22. Rxb7 {[%emt 0:01:28]} Ba4 {[%emt 0:02:12]} 23. Rd2 {[%emt 0:03:19]} Ne5 {[%emt 0:03:17]} 24. Rb4 {[%emt 0:01:45]} Be8 {[%emt 0:00:09]} 25. f4 {[%emt 0:00:55]} Nc6 {[%emt 0:02:28]} 26. Rbb2 {[%emt 0:01:17]} a5 {[%emt 0:03:47]} 27. c5 {[%emt 0:00:44]} a4 {[%emt 0:00:52]} 28. Rb6 {[%emt 0:02:08]} Na5 {[%emt 0:02:45]} 29. Rd4 {[%emt 0:00:35]} a3 {[%emt 0:01:38]} 30. Ra6 {[%emt 0:05:39]} Ra8 {[%emt 0:01:24]} 31. Bc7 {[%emt 0:00:38]} 1-0

[Event "AUT-ch Open 2020"]
[Site "Graz"]
[Date "2020.02.16"]
[Round "3.34"]
[White "Polterauer, Chiara"]
[Black "Valeanu, Eduard-Andrei"]
[Result "0-1"]
[ECO "B23"]
[WhiteElo "2187"]
[BlackElo "2427"]
[Annotator "ChessBase"]
[PlyCount "70"]
[EventDate "2020.02.14"]
[EventType "swiss"]
[EventCountry "AUT"]
[SourceTitle "playchess.com"]
[Source "ChessBase"]
[SourceQuality "1"]
[TimeControl "40/5400+30:1800+30"]

1. e4 {[%emt 0:00:00]} c5 {[%emt 0:02:15]} 2. Nc3 {[%emt 0:00:00]} g6 {[%emt 0:00:10]} 3. f4 {[%emt 0:00:00]} Bg7 {[%emt 0:00:05]} 4. Nf3 {[%emt 0:00:13]} Nc6 {[%emt 0:00:05]} 5. Bc4 {[%emt 0:00:33]} e6 {[%emt 0:00:08]} 6. O-O {[%emt 0:00:18]} Nge7 {[%emt 0:00:04]} 7. f5 {[%emt 0:02:48]} d5 {[%emt 0:03:25]} 8. fxg6 {[%emt 0:01:16]} fxg6 {[%emt 0:04:22]} 9. Bb5 {[%emt 0:05:28]} O-O {[%emt 0:00:16]} 10. Bxc6 {[%emt 0:04:21]} Nxc6 {[%emt 0:01:01]} 11. d3 {[%emt 0:00:20]} Qd6 {[%emt 0:08:46]} 12. Qe1 {[%emt 0:09:35]} Bd7 {[%emt 0:08:56]} 13. Qh4 {[%emt 0:13:57]} Nd4 {[%emt 0:03:06]} 14. Bh6 {[%emt 0:02:42]} Nxf3+ {[%emt 0:18:08]} 15. gxf3 {[%emt 0:04:03]} Rf7 {[%emt 0:05:32]} 16. Bxg7 {[%emt 0:03:19]} Kxg7 {[%emt 0:00:09]} 17. Rae1 {[%emt 0:00:09]} Raf8 {[%emt 0:00:50]} 18. e5 {[%emt 0:02:31]} Qb6 {[%emt 0:00:31]} 19. Nd1 {[%emt 0:03:35]} Rf4 {[%emt 0:06:36]} 20. Qg3 {[%emt 0:00:28]} c4+ {[%emt 0:01:45]} 21. Kh1 {[%emt 0:01:51]} cxd3 {[%emt 0:00:20]} 22. cxd3 {[%emt 0:01:06]} Qd4 {[%emt 0:00:56]} 23. Re3 {[%emt 0:08:09]} Ba4 {[%emt 0:02:43]} 24. b3 {[%emt 0:01:07]} Bb5 {[%emt 0:00:01]} 25. Rf2 {[%emt 0:03:17]} Qa1 {[%emt 0:00:41]} 26. Qg1 {[%emt 0:01:48]} d4 {[%emt 0:00:35]} 27. Re4 {[%emt 0:12:21]} Bxd3 {[%emt 0:01:42]} 28. Rxf4 {[%emt 0:02:08]} Rxf4 {[%emt 0:00:04]} 29. Qe1 {[%emt 0:01:24]} Qc1 {[%emt 0:04:20]} 30. Kg2 {[%emt 0:00:18]} Bb5 {[%emt 0:01:41]} 31. Kg3 {[%emt 0:04:22]} Bc6 {[%emt 0:03:28]} 32. Qe2 {[%emt 0:00:25]} g5 {[%emt 0:01:21]} 33. Rf1 {[%emt 0:04:39]} Rh4 {[%emt 0:01:01]} 34. h3 {[%emt 0:03:40]} Qf4+ {[%emt 0:00:21]} 35. Kg2 {[%emt 0:01:04]} g4 {[%emt 0:00:18]} 0-1

[Event "AUT-ch Open 2020"]
[Site "Graz"]
[Date "2020.02.16"]
[Round "3.36"]
[White "Kosakowski, Jakub"]
[Black "Tonndorf, Matthias"]
[Result "1-0"]
[ECO "B42"]
[WhiteElo "2413"]
[BlackElo "2193"]
[Annotator "ChessBase"]
[PlyCount "109"]
[EventDate "2020.02.14"]
[EventType "swiss"]
[EventCountry "AUT"]
[SourceTitle "playchess.com"]
[Source "ChessBase"]
[SourceQuality "1"]
[TimeControl "40/5400+30:1800+30"]

1. e4 {[%emt 0:00:00]} c5 {[%emt 0:02:03]} 2. Nf3 {[%emt 0:00:00]} e6 {[%emt 0:00:28]} 3. d4 {[%emt 0:00:00]} cxd4 {[%emt 0:00:10]} 4. Nxd4 {[%emt 0:00:06]} a6 {[%emt 0:00:07]} 5. Bd3 {[%emt 0:00:05]} g6 {[%emt 0:04:16]} 6. O-O {[%emt 0:00:31]} Bg7 {[%emt 0:00:42]} 7. Nb3 {[%emt 0:00:11]} Ne7 {[%emt 0:01:00]} 8. c4 {[%emt 0:00:09]} Nbc6 {[%emt 0:07:05]} 9. Nc3 {[%emt 0:00:30]} O-O {[%emt 0:02:58]} 10. Be2 {[%emt 0:00:22]} f5 {[%emt 0:17:25]} 11. c5 {[%emt 0:02:41]} Bxc3 {[%emt 0:18:11]} 12. bxc3 {[%emt 0:00:37]} fxe4 {[%emt 0:00:07]} 13. Qc2 {[%emt 0:04:44]} Nd5 {[%emt 0:03:12]} 14. c4 {[%emt 0:00:50]} Nf4 {[%emt 0:05:40]} 15. Qxe4 {[%emt 0:02:40]} Qf6 {[%emt 0:06:19]} 16. g3 {[%emt 0:07:59]} Nxe2+ {[%emt 0:04:37]} 17. Qxe2 {[%emt 0:00:13]} a5 {[%emt 0:02:27]} 18. Bb2 {[%emt 0:01:02]} Qf3 {[%emt 0:00:38]} 19. Qd2 {[%emt 0:00:22]} e5 {[%emt 0:01:42]} 20. Rae1 {[%emt 0:05:36]} a4 {[%emt 0:02:12]} 21. Nc1 {[%emt 0:00:17]} Re8 {[%emt 0:03:53]} 22. Re3 {[%emt 0:07:18]} Qf7 {[%emt 0:00:31]} 23. Nd3 {[%emt 0:00:25]} Qxc4 {[%emt 0:03:06]} 24. Nxe5 {[%emt 0:00:10]} Nxe5 {[%emt 0:00:41]} 25. Bxe5 {[%emt 0:00:50]} d5 {[%emt 0:05:00]} 26. Bd4 {[%emt 0:03:33]} Bf5 {[%emt 0:03:32]} 27. Rfe1 {[%emt 0:00:45]} Re4 {[%emt 0:00:57]} 28. Rxe4 {[%emt 0:00:37]} Bxe4 {[%emt 0:00:16]} 29. f3 {[%emt 0:04:27]} Qd3 {[%emt 0:04:09]} 30. Qxd3 {[%emt 0:00:11]} Bxd3 {[%emt 0:00:03]} 31. Re7 {[%emt 0:00:03]} h5 {[%emt 0:00:34]} 32. a3 {[%emt 0:00:51]} Kf8 {[%emt 0:00:45]} 33. Rxb7 {[%emt 0:00:11]} Re8 {[%emt 0:00:17]} 34. Bc3 {[%emt 0:02:38]} Re3 {[%emt 0:00:47]} 35. c6 {[%emt 0:01:13]} Bf5 {[%emt 0:01:00]} 36. Bb4+ {[%emt 0:00:23]} Kg8 {[%emt 0:00:30]} 37. Rb8+ {[%emt 0:04:56]} Kf7 {[%emt 0:00:12]} 38. c7 {[%emt 0:00:30]} Re8 {[%emt 0:00:10]} 39. Rd8 {[%emt 0:00:07]} Be6 {[%emt 0:01:03]} 40. h4 {[%emt 0:00:12]} Rg8 {[%emt 0:00:35]} 41. Kf2 {[%emt 0:30:05]} Re8 {[%emt 0:00:17]} 42. Bc5 {[%emt 0:00:00]} Bc8 {[%emt 0:02:05]} 43. Rxd5 {[%emt 0:00:00]} Ba6 {[%emt 0:00:42]} 44. Rd7+ {[%emt 0:00:00]} Kg8 {[%emt 0:00:44]} 45. Rd8 {[%emt 0:00:00]} Kf7 {[%emt 0:00:10]} 46. g4 {[%emt 0:00:00]} Bc8 {[%emt 0:01:25]} 47. Kg3 {[%emt 0:00:00]} Rg8 {[%emt 0:02:05]} 48. Kf4 {[%emt 0:00:00]} hxg4 {[%emt 0:01:40]} 49. Rxg8 {[%emt 0:00:00]} Kxg8 {[%emt 0:00:07]} 50. fxg4 {[%emt 0:00:00]} Kf7 {[%emt 0:01:05]} 51. Kg5 {[%emt 0:00:00]} Kg7 {[%emt 0:04:24]} 52. Bd4+ {[%emt 0:00:00]} Kh7 {[%emt 0:00:16]} 53. h5 {[%emt 0:00:00]} gxh5 {[%emt 0:00:21]} 54. gxh5 {[%emt 0:00:00]} Bd7 {[%emt 0:01:10]} 55. h6 {[%emt 0:00:00]} 1-0

[Event "AUT-ch Open 2020"]
[Site "Graz"]
[Date "2020.02.17"]
[Round "4.11"]
[White "Schoppen, Casper"]
[Black "Godzwon, Iwo"]
[Result "1/2-1/2"]
[ECO "B46"]
[WhiteElo "2489"]
[BlackElo "2321"]
[Annotator "RC"]
[PlyCount "60"]
[EventDate "2020.02.14"]
[EventType "swiss"]
[EventCountry "AUT"]
[SourceTitle "playchess.com"]
[Source "ChessBase"]
[SourceQuality "1"]
[TimeControl "40/5400+30:1800+30"]

1. e4 {[%emt 0:00:00]} c5 {[%emt 0:00:00]} 2. Nf3 {[%emt 0:00:00]} e6 {[%emt 0:00:00]} 3. d4 {[%emt 0:00:00]} cxd4 {[%emt 0:00:00]} 4. Nxd4 {[%emt 0:00:01]} Nc6 {[%emt 0:00:00]} 5. Nc3 {[%emt 0:00:11]} a6 {[%emt 0:00:00]} 6. Be3 {[%emt 0:01:44]} Nf6 {[%emt 0:00:00]} 7. Nxc6 {[%emt 0:10:31]} bxc6 {[%emt 0:00:06]} 8. e5 {[%emt 0:00:21]} Nd5 {[%emt 0:00:07]} 9. Nxd5 {[%emt 0:00:22]} cxd5 {[%emt 0:00:02]} 10. Bd4 {[%emt 0:00:29]} Be7 {[%emt 0:22:12]} 11. Bd3 {[%emt 0:02:34]} O-O {[%emt 0:02:31]} 12. O-O {[%emt 0:00:17]} d6 {[%emt 0:03:01]} 13. f4 {[%emt 0:04:16]} g6 {[%emt 0:07:17]} 14. Qe2 {[%emt 0:02:59]} a5 {[%emt 0:05:53]} 15. Rf3 {[%emt 0:03:42]} f5 {[%emt 0:01:04]} 16. Re1 {[%emt 0:03:47]} dxe5 {[%emt 0:01:07]} 17. Bxe5 {[%emt 0:04:57]} Bf6 {[%emt 0:05:45]} 18. c4 {[%emt 0:13:53]} Bb7 {[%emt 0:08:35]} 19. c5 {[%emt 0:13:08]} d4 {[%emt 0:03:47]} 20. Bd6 {[%emt 0:09:10]} Bxf3 {[%emt 0:00:06]} 21. Qxe6+ {[%emt 0:01:52]} Kg7 {[%emt 0:00:13]} 22. gxf3 {[%emt 0:09:30]} Re8 {[%emt 0:01:56]} 23. Qxe8 {[%emt 0:01:04]} Qxe8 {[%emt 0:00:03]} 24. Rxe8 {[%emt 0:00:07]} Rxe8 {[%emt 0:00:03]} 25. c6 {[%emt 0:10:46]} Be7 {[%emt 0:00:07]} 26. Be5+ {[%emt 0:00:51]} Bf6 {[%emt 0:00:03]} 27. Bd6 {[%emt 0:02:24]} Be7 {[%emt 0:00:46]} 28. Be5+ {[%emt 0:01:26]} Bf6 {[%emt 0:00:03]} 29. Bd6 {[%emt 0:01:29]} Be7 {[%emt 0:00:04]} 30. Be5+ {[%emt 0:00:07]} Bf6 {[%emt 0:00:03]} 1/2-1/2

[Event "AUT-ch Open 2020"]
[Site "Graz"]
[Date "2020.02.18"]
[Round "5.2"]
[White "Krasteva, Beloslava"]
[Black "Niedbala, Bartlomiej"]
[Result "1-0"]
[ECO "A40"]
[WhiteElo "2259"]
[BlackElo "2432"]
[Annotator "ChessBase"]
[PlyCount "138"]
[EventDate "2020.02.14"]
[EventType "swiss"]
[EventCountry "AUT"]
[SourceTitle "playchess.com"]
[Source "ChessBase"]
[SourceQuality "1"]
[TimeControl "40/5400+30:1800+30"]

1. d4 {[%emt 0:00:00]} e6 {[%emt 0:03:43]} 2. c4 {[%emt 0:00:25]} b6 {[%emt 0:00:48]} 3. Nc3 {[%emt 0:04:16]} Bb7 {[%emt 0:00:16]} 4. a3 {[%emt 0:05:49]} Nf6 {[%emt 0:04:56]} 5. e3 {[%emt 0:03:05]} d5 {[%emt 0:04:12]} 6. cxd5 {[%emt 0:04:28]} exd5 {[%emt 0:01:03]} 7. Bd3 {[%emt 0:01:38]} Bd6 {[%emt 0:00:53]} 8. Nge2 {[%emt 0:01:16]} O-O {[%emt 0:01:10]} 9. O-O {[%emt 0:02:07]} a6 {[%emt 0:06:00]} 10. Bd2 {[%emt 0:04:05]} Nbd7 {[%emt 0:02:31]} 11. Nf4 {[%emt 0:02:46]} c5 {[%emt 0:02:54]} 12. Qf3 {[%emt 0:03:19]} Qb8 {[%emt 0:16:37]} 13. Ncxd5 {[%emt 0:23:26]} Bxf4 {[%emt 0:08:32]} 14. Nxf6+ {[%emt 0:02:46]} Nxf6 {[%emt 0:00:52]} 15. Qxf4 {[%emt 0:00:07]} Qxf4 {[%emt 0:00:49]} 16. exf4 {[%emt 0:00:02]} Rfd8 {[%emt 0:03:27]} 17. Rad1 {[%emt 0:01:41]} Rd6 {[%emt 0:11:09]} 18. Bc3 {[%emt 0:07:48]} Rad8 {[%emt 0:01:12]} 19. Bc2 {[%emt 0:02:50]} cxd4 {[%emt 0:02:08]} 20. Bb4 {[%emt 0:00:09]} R6d7 {[%emt 0:10:01]} 21. Bf5 {[%emt 0:02:48]} Rc7 {[%emt 0:01:53]} 22. Rfe1 {[%emt 0:02:23]} Rd5 {[%emt 0:03:54]} 23. Bd3 {[%emt 0:03:09]} Rdd7 {[%emt 0:01:41]} 24. Bf5 {[%emt 0:05:58]} Rd5 {[%emt 0:00:10]} 25. Bd3 {[%emt 0:03:44]} g6 {[%emt 0:04:53]} 26. f3 {[%emt 0:03:37]} Rdd7 {[%emt 0:00:28]} 27. f5 {[%emt 0:00:50]} Kg7 {[%emt 0:02:09]} 28. fxg6 {[%emt 0:00:33]} hxg6 {[%emt 0:00:08]} 29. Bd2 {[%emt 0:00:56]} Nd5 {[%emt 0:00:15]} 30. Kf2 {[%emt 0:00:52]} f5 {[%emt 0:00:34]} 31. g3 {[%emt 0:01:05]} Kf7 {[%emt 0:02:11]} 32. h4 {[%emt 0:01:51]} Nf6 {[%emt 0:02:05]} 33. Bf4 {[%emt 0:00:38]} Rc8 {[%emt 0:00:27]} 34. Rc1 {[%emt 0:00:55]} Rxc1 {[%emt 0:01:02]} 35. Rxc1 {[%emt 0:00:06]} Ke6 {[%emt 0:01:02]} 36. Re1+ {[%emt 0:00:51]} Kf7 {[%emt 0:00:14]} 37. Bc4+ {[%emt 0:00:57]} Nd5 {[%emt 0:00:23]} 38. Be5 {[%emt 0:01:32]} b5 {[%emt 0:00:04]} 39. Bb3 {[%emt 0:00:41]} d3 {[%emt 0:00:28]} 40. Rd1 {[%emt 0:00:33]} Ke7 {[%emt 0:01:44]} 41. Rxd3 {[%emt 0:30:36]} Nb6 {[%emt 0:03:11]} 42. Rxd7+ {[%emt 0:00:00]} Nxd7 {[%emt 0:00:01]} 43. Bd4 {[%emt 0:00:00]} Nb8 {[%emt 0:01:56]} 44. Ke3 {[%emt 0:00:00]} Bc8 {[%emt 0:00:24]} 45. Kf4 {[%emt 0:00:00]} Be6 {[%emt 0:00:27]} 46. Bxe6 {[%emt 0:00:00]} Kxe6 {[%emt 0:00:40]} 47. Kg5 {[%emt 0:00:00]} Nc6 {[%emt 0:02:57]} 48. Bf6 {[%emt 0:00:00]} Kf7 {[%emt 0:00:19]} 49. h5 {[%emt 0:00:00]} gxh5 {[%emt 0:00:08]} 50. Kxf5 {[%emt 0:00:00]} a5 {[%emt 0:00:02]} 51. f4 {[%emt 0:00:00]} a4 {[%emt 0:00:53]} 52. Kg5 {[%emt 0:00:00]} b4 {[%emt 0:00:10]} 53. axb4 {[%emt 0:01:11]} Nxb4 {[%emt 0:00:38]} 54. Bd4 {[%emt 0:00:24]} Nd5 {[%emt 0:02:13]} 55. Kxh5 {[%emt 0:00:34]} Ke6 {[%emt 0:00:16]} 56. Kg5 {[%emt 0:00:52]} Ne7 {[%emt 0:00:57]} 57. g4 {[%emt 0:00:23]} Kf7 {[%emt 0:00:04]} 58. f5 {[%emt 0:00:52]} Nd5 {[%emt 0:00:00]} 59. Kh4 {[%emt 0:01:39]} Ne7 {[%emt 0:01:27]} 60. Kg3 {[%emt 0:00:18]} Nc6 {[%emt 0:00:06]} 61. Bc3 {[%emt 0:00:18]} Ne7 {[%emt 0:00:08]} 62. Kf3 {[%emt 0:00:21]} Nd5 {[%emt 0:00:56]} 63. Bd4 {[%emt 0:00:11]} Ne7 {[%emt 0:00:33]} 64. Ke4 {[%emt 0:00:09]} Ng8 {[%emt 0:00:04]} 65. g5 {[%emt 0:00:19]} Ne7 {[%emt 0:00:01]} 66. Bc3 {[%emt 0:00:28]} Ng8 {[%emt 0:00:34]} 67. g6+ {[%emt 0:00:58]} Kf8 {[%emt 0:00:04]} 68. f6 {[%emt 0:00:37]} Nh6 {[%emt 0:00:07]} 69. Kf4 {[%emt 0:00:11]} Ng8 {[%emt 0:00:43]} 1-0

[Event "AUT-ch Open 2020"]
[Site "Graz"]
[Date "2020.02.18"]
[Round "5.5"]
[White "Livaic, Leon"]
[Black "Menezes, Christoph"]
[Result "1-0"]
[ECO "D38"]
[WhiteElo "2492"]
[BlackElo "2492"]
[Annotator "RC"]
[PlyCount "141"]
[EventDate "2020.02.14"]
[EventType "swiss"]
[EventCountry "AUT"]
[SourceTitle "playchess.com"]
[Source "ChessBase"]
[SourceQuality "1"]
[TimeControl "40/5400+30:1800+30"]

1. d4 {[%emt 0:01:15]} Nf6 {[%emt 0:00:00]} 2. Nf3 {[%emt 0:01:41]} d5 {[%emt 0:00:01]} 3. c4 {[%emt 0:00:20]} e6 {[%emt 0:00:10]} 4. Nc3 {[%emt 0:01:38]} Bb4 {[%emt 0:00:20]} 5. Bg5 {[%emt 0:00:50]} h6 {[%emt 0:01:14]} 6. Bxf6 {[%emt 0:00:23]} Qxf6 {[%emt 0:00:05]} 7. e3 {[%emt 0:01:00]} O-O {[%emt 0:00:56]} 8. Rc1 {[%emt 0:00:19]} dxc4 {[%emt 0:00:49]} 9. Bxc4 {[%emt 0:00:05]} c5 {[%emt 0:00:28]} 10. O-O {[%emt 0:01:37]} cxd4 {[%emt 0:00:55]} 11. Ne4 {[%emt 0:00:48]} Qe7 {[%emt 0:03:11]} 12. a3 {[%emt 0:03:44]} Ba5 {[%emt 0:01:39]} 13. Qxd4 {[%emt 0:04:13]} Nc6 {[%emt 0:11:18]} 14. Qc5 {[%emt 0:05:20]} Rd8 {[%emt 0:09:11]} 15. Qh5 {[%emt 0:02:25]} Bd7 {[%emt 0:08:06]} 16. g4 {[%emt 0:03:26]} f6 {[%emt 0:05:37]} 17. Rfd1 {[%emt 0:14:00]} Be8 {[%emt 0:08:13]} 18. Qc5 {[%emt 0:00:26]} Kf7 {[%emt 0:06:21]} 19. Rd6 {[%emt 0:27:41]} Rxd6 {[%emt 0:14:48]} 20. Nxd6+ {[%emt 0:00:10]} Kf8 {[%emt 0:00:26]} 21. Nxb7 {[%emt 0:00:38]} Bb6 {[%emt 0:00:50]} 22. Qxe7+ {[%emt 0:01:10]} Kxe7 {[%emt 0:00:09]} 23. Ba6 {[%emt 0:03:13]} Nb8 {[%emt 0:04:36]} 24. Be2 {[%emt 0:00:32]} a5 {[%emt 0:04:41]} 25. Nc5 {[%emt 0:01:21]} a4 {[%emt 0:04:20]} 26. Nd4 {[%emt 0:01:16]} Bxc5 {[%emt 0:05:59]} 27. Rxc5 {[%emt 0:00:25]} Ra7 {[%emt 0:01:13]} 28. Bb5 {[%emt 0:03:34]} Bd7 {[%emt 0:02:38]} 29. Bxd7 {[%emt 0:02:06]} Kxd7 {[%emt 0:00:09]} 30. Rb5 {[%emt 0:01:42]} Nc6 {[%emt 0:00:49]} 31. Nxc6 {[%emt 0:00:45]} Kxc6 {[%emt 0:00:03]} 32. Rb4 {[%emt 0:00:07]} g5 {[%emt 0:00:26]} 33. Kf1 {[%emt 0:00:54]} Kd5 {[%emt 0:02:15]} 34. Ke2 {[%emt 0:00:38]} Kc5 {[%emt 0:00:58]} 35. f3 {[%emt 0:03:25]} f5 {[%emt 0:01:25]} 36. Kd3 {[%emt 0:01:33]} Rd7+ {[%emt 0:00:56]} 37. Kc3 {[%emt 0:02:16]} Ra7 {[%emt 0:00:58]} 38. h3 {[%emt 0:03:41]} Ra8 {[%emt 0:01:07]} 39. Rb7 {[%emt 0:03:07]} Rc8 {[%emt 0:00:51]} 40. Rb4 {[%emt 0:02:07]} Ra8 {[%emt 0:00:55]} 41. Kd3 {[%emt 0:08:14]} Rd8+ {[%emt 0:01:20]} 42. Ke2 {[%emt 0:00:13]} Ra8 {[%emt 0:00:23]} 43. f4 {[%emt 0:00:32]} Ra5 {[%emt 0:10:40]} 44. Kf3 {[%emt 0:04:07]} Ra6 {[%emt 0:05:55]} 45. e4 {[%emt 0:01:38]} fxg4+ {[%emt 0:01:41]} 46. Kxg4 {[%emt 0:00:53]} gxf4 {[%emt 0:00:09]} 47. Kxf4 {[%emt 0:00:05]} Kd6 {[%emt 0:00:09]} 48. Kg4 {[%emt 0:00:31]} Ra5 {[%emt 0:01:21]} 49. h4 {[%emt 0:01:20]} Ke7 {[%emt 0:01:10]} 50. e5 {[%emt 0:01:34]} Rxe5 {[%emt 0:01:38]} 51. Rxa4 {[%emt 0:00:06]} h5+ {[%emt 0:00:29]} 52. Kf4 {[%emt 0:00:57]} Kf6 {[%emt 0:01:35]} 53. b4 {[%emt 0:02:03]} Rd5 {[%emt 0:01:26]} 54. Ke4 {[%emt 0:00:32]} Rd1 {[%emt 0:00:59]} 55. b5 {[%emt 0:01:56]} Rh1 {[%emt 0:00:51]} 56. Ra8 {[%emt 0:06:28]} Rxh4+ {[%emt 0:01:17]} 57. Kd3 {[%emt 0:00:08]} Rh1 {[%emt 0:03:41]} 58. a4 {[%emt 0:01:27]} Rb1 {[%emt 0:01:29]} 59. Kc4 {[%emt 0:00:43]} h4 {[%emt 0:02:03]} 60. Rh8 {[%emt 0:00:29]} Kg5 {[%emt 0:00:54]} 61. a5 {[%emt 0:00:25]} e5 {[%emt 0:01:04]} 62. a6 {[%emt 0:00:29]} Ra1 {[%emt 0:00:31]} 63. Kd5 {[%emt 0:05:42]} Ra5 {[%emt 0:00:47]} 64. Ke4 {[%emt 0:01:38]} Kg4 {[%emt 0:00:44]} 65. Rg8+ {[%emt 0:00:49]} Kh3 {[%emt 0:00:17]} 66. b6 {[%emt 0:00:13]} Rxa6 {[%emt 0:00:08]} 67. b7 {[%emt 0:00:03]} Rb6 {[%emt 0:00:19]} 68. b8=Q {[%emt 0:00:05]} Rxb8 {[%emt 0:00:12]} 69. Rxb8 {[%emt 0:00:03]} Kg3 {[%emt 0:00:34]} 70. Ke3 {[%emt 0:02:44]} Kh2 {[%emt 0:01:08]} 71. Ke4 1-0

[Event "AUT-ch Open 2020"]
[Site "Graz"]
[Date "2020.02.18"]
[Round "5.5"]
[White "Frosch, Erich"]
[Black "Hoefelsauer, Thomas"]
[Result "1/2-1/2"]
[ECO "D12"]
[WhiteElo "2210"]
[BlackElo "2390"]
[Annotator "RC"]
[PlyCount "132"]
[EventDate "2020.02.14"]
[EventType "swiss"]
[EventCountry "AUT"]
[SourceTitle "playchess.com"]
[Source "ChessBase"]
[SourceQuality "1"]
[TimeControl "40/5400+30:1800+30"]

1. d4 {[%emt 0:00:00]} d5 {[%emt 0:00:00]} 2. Nf3 {[%emt 0:00:00]} Nf6 {[%emt 0:00:00]} 3. e3 {[%emt 0:00:00]} Bf5 {[%emt 0:00:12]} 4. c4 {[%emt 0:00:00]} c6 {[%emt 0:00:07]} 5. Nc3 {[%emt 0:00:00]} e6 {[%emt 0:00:12]} 6. a3 {[%emt 0:00:05]} Be7 {[%emt 0:01:25]} 7. h3 {[%emt 0:00:18]} Nbd7 {[%emt 0:01:21]} 8. Be2 {[%emt 0:01:49]} h6 {[%emt 0:00:36]} 9. b4 {[%emt 0:00:20]} O-O {[%emt 0:04:05]} 10. Bb2 {[%emt 0:00:05]} a5 {[%emt 0:06:16]} 11. b5 {[%emt 0:00:27]} cxb5 {[%emt 0:01:34]} 12. Nxb5 {[%emt 0:03:46]} dxc4 {[%emt 0:02:12]} 13. Bxc4 {[%emt 0:00:28]} Rc8 {[%emt 0:01:06]} 14. Bd3 {[%emt 0:02:58]} Bxd3 {[%emt 0:03:49]} 15. Qxd3 {[%emt 0:00:10]} Nc5 {[%emt 0:00:56]} 16. Qe2 {[%emt 0:00:11]} Na4 {[%emt 0:01:15]} 17. O-O {[%emt 0:00:20]} Qd5 {[%emt 0:01:34]} 18. Rac1 {[%emt 0:05:44]} Qb3 {[%emt 0:07:14]} 19. Ba1 {[%emt 0:05:59]} Ne4 {[%emt 0:04:59]} 20. Rb1 {[%emt 0:02:38]} Qc2 {[%emt 0:05:01]} 21. Qe1 {[%emt 0:06:08]} b6 {[%emt 0:03:02]} 22. d5 {[%emt 0:04:21]} exd5 {[%emt 0:01:21]} 23. Nfd4 {[%emt 0:00:44]} Qc5 {[%emt 0:10:48]} 24. f3 {[%emt 0:08:13]} Nd6 {[%emt 0:06:15]} 25. Qg3 {[%emt 0:01:59]} g6 {[%emt 0:09:54]} 26. Rfe1 {[%emt 0:10:06]} Nxb5 {[%emt 0:02:21]} 27. Nxb5 {[%emt 0:00:55]} Rfe8 {[%emt 0:10:59]} 28. Qe5 {[%emt 0:05:44]} f6 {[%emt 0:00:19]} 29. Qf4 {[%emt 0:00:12]} Qc2 {[%emt 0:01:21]} 30. Qxh6 {[%emt 0:01:08]} Qf5 {[%emt 0:01:45]} 31. Bd4 {[%emt 0:03:52]} Qg5 {[%emt 0:02:07]} 32. Qxg5 {[%emt 0:00:19]} fxg5 {[%emt 0:00:01]} 33. Kf2 {[%emt 0:03:39]} Rc2+ {[%emt 0:00:55]} 34. Re2 {[%emt 0:00:26]} Rec8 {[%emt 0:00:34]} 35. Rd1 {[%emt 0:01:27]} Kf7 {[%emt 0:02:39]} 36. Be5 {[%emt 0:00:53]} Rxe2+ {[%emt 0:01:04]} 37. Kxe2 {[%emt 0:00:12]} Rc5 {[%emt 0:00:18]} 38. Rb1 {[%emt 0:01:11]} Rc2+ {[%emt 0:01:27]} 39. Kf1 {[%emt 0:00:38]} Bc5 {[%emt 0:02:38]} 40. Rb3 {[%emt 0:02:04]} Ra2 {[%emt 0:01:13]} 41. Kg1 {[%emt 0:31:46]} Ke6 {[%emt 0:33:39]} 42. Bg7 {[%emt 0:03:25]} Rd2 {[%emt 0:00:00]} 43. Kh2 {[%emt 0:00:00]} Kf7 {[%emt 0:00:00]} 44. Be5 {[%emt 0:00:00]} Ke6 {[%emt 0:00:00]} 45. Bg7 {[%emt 0:00:00]} Kf7 {[%emt 0:00:00]} 46. Be5 {[%emt 0:00:00]} Re2 {[%emt 0:00:00]} 47. Nd4 {[%emt 0:00:00]} Rb2 {[%emt 0:00:00]} 48. Rd3 {[%emt 0:00:00]} Rb1 {[%emt 0:00:00]} 49. Kg3 {[%emt 0:00:00]} Re1 {[%emt 0:00:00]} 50. Rb3 {[%emt 0:00:00]} Rc1 {[%emt 0:00:00]} 51. Nb5 {[%emt 0:00:00]} Ke6 {[%emt 0:00:00]} 52. Bg7 {[%emt 0:00:00]} Be7 {[%emt 0:00:00]} 53. Kg4 {[%emt 0:00:00]} Nc5 {[%emt 0:00:00]} 54. Rb2 {[%emt 0:01:01]} Nd3 {[%emt 0:00:00]} 55. Rd2 {[%emt 0:00:58]} Ne5+ {[%emt 0:00:00]} 56. Bxe5 {[%emt 0:00:45]} Kxe5 {[%emt 0:00:00]} 57. f4+ {[%emt 0:00:23]} gxf4 {[%emt 0:01:33]} 58. exf4+ {[%emt 0:00:14]} Ke6 {[%emt 0:00:11]} 59. Nd4+ {[%emt 0:03:22]} Kf6 {[%emt 0:00:01]} 60. Rd3 {[%emt 0:01:32]} Ra1 {[%emt 0:01:11]} 61. Nb5 {[%emt 0:00:59]} Ke6 {[%emt 0:01:35]} 62. Nc7+ {[%emt 0:00:31]} Kf7 {[%emt 0:02:54]} 63. Nxd5 {[%emt 0:00:30]} Rxa3 {[%emt 0:00:15]} 64. Rxa3 {[%emt 0:00:24]} Bxa3 {[%emt 0:00:02]} 65. Nxb6 {[%emt 0:00:12]} Bc5 {[%emt 0:00:18]} 66. Na4 {[%emt 0:00:26]} Bd4 {[%emt 0:00:16]} 1/2-1/2